bitfinex/quotes_ETHUSD_20251118
["timestamp","ask_amount","ask_price","bid_price","bid_amount"]
[1763440468665,0.03334333,2999.6,2997.3,0.03336336]
[1763440468965,0.52664333,2999.6,2997.4,0.1302]
[1763440469164,0.4933,2999.6,2997.6,0.405504]
[1763440469366,0.1835,2999.8,2997.7,0.1302]
[1763440469553,0.4933,3000.9,2998.1,0.405504]
[1763440469757,0.03334333,3002.8,2998.3,0.405504]
[1763440470066,0.071,3002.3,3000.5,1.31249664]
[1763440470252,0.071,3002.3,3000.7,0.405504]
[1763440470456,0.071,3002.3,3000.9,0.405504]
[1763440470766,0.071,3002.3,3000.7,0.405504]
[1763440470767,0.5643,3002.3,3000.7,0.405504]
[1763440470976,0.03334333,3002.2,3000.7,0.405504]
[1763440471348,0.4933,3002.1,3000.3,0.405504]
[1763440471549,0.4933,3002.1,3000.5,0.405504]
[1763440471966,0.002,3003.0,2999.2,5.10585705]
[1763440471967,0.291,3002.0,3000.7,0.405504]
[1763440472182,0.291,3002.0,3000.9,0.405504]
[1763440472370,0.52664333,3001.9,3000.9,0.405504]
[1763440472653,0.52664333,3001.9,2999.5,0.405504]
[1763440472654,0.03334333,3001.8,2999.5,0.405504]
[1763440472865,0.03334333,3001.8,2999.4,0.16354]
[1763440472866,0.03334333,3001.8,2999.7,0.405504]
[1763440473081,0.4933,3001.7,2999.9,0.405504]
[1763440473351,0.4933,3001.7,2999.5,0.1302]
[1763440473352,0.03334333,3001.6,2999.5,0.03333888]
[1763440473587,0.4933,3001.5,2999.4,0.1302]
[1763440473785,0.4933,3001.5,2998.7,0.16354778]
[1763440473786,0.03334333,3001.4,2998.7,0.16354778]
[1763440473957,0.03334333,3001.4,2998.7,0.1302]
[1763440474155,0.4933,3001.3,2998.7,0.19178771]
[1763440474391,0.43884733,3001.2,2998.3,1.7876771]
[1763440474663,0.43884733,3001.2,2997.8,1.7876771]
[1763440474864,0.405504,3001.0,2997.8,1.7876771]
[1763440475064,0.405504,3000.8,2997.9,0.19178771]
[1763440475301,0.90699264,3001.9,2997.5,1.7876771]
[1763440475302,1.204,2999.4,2997.5,1.7876771]
[1763440475456,0.50784333,2999.3,2997.3,2.24135636]
[1763440475657,0.9678,2999.3,2997.4,1.7876771]
[1763440475964,0.90699264,2999.1,2997.4,0.03336224]
[1763440476167,0.4634,2999.2,2997.5,0.19512393]
[1763440476368,2.699,2999.1,2997.6,0.405504]
[1763440476698,2.699,2999.1,2997.5,0.19512393]
[1763440476699,1.495,2999.1,2997.5,0.19512393]
[1763440476907,0.49674333,2999.0,2997.2,0.0968]
[1763440477256,0.4634,2999.0,2997.2,0.0968]
[1763440477475,0.291,2998.9,2997.3,0.03336336]
[1763440477896,0.291,2998.9,2997.3,0.405504]
[1763440478060,0.7544,2998.9,2997.3,0.405504]
[1763440478254,0.291,2998.8,2997.3,0.405504]
[1763440478816,0.291,2998.7,2997.3,0.43886736]
[1763440479580,0.4634,2998.9,2997.3,0.43886736]
[1763440479918,0.291,2998.6,2997.3,0.43886736]
[1763440480120,0.291,2998.5,2997.3,0.43886736]
[1763440480324,0.1835,2999.3,2997.3,0.43886736]
[1763440480325,0.1835,2999.3,2997.5,0.405504]
[1763440480485,0.291,2999.2,2997.6,0.03336002]
[1763440480684,0.291,2999.2,2997.5,0.535704]
[1763440481095,0.7544,2999.2,2997.5,0.535704]
[1763440481626,0.7544,2999.2,2997.3,0.001]
[1763440481627,0.4634,2999.1,2997.3,0.001]
[1763440481928,0.03334333,2999.0,2997.3,0.001]
[1763440482240,0.03334333,2998.9,2997.3,0.001]
[1763440482719,0.4634,2998.8,2997.3,0.001]
[1763440482881,0.03334333,2998.7,2997.3,0.001]
[1763440483084,0.4634,2998.6,2997.3,0.001]
[1763440483320,0.03334333,2998.5,2997.3,0.001]
[1763440483533,0.1838,2997.4,2997.3,0.001]
[1763440483731,0.4748,2997.4,2997.3,0.001]
[1763440483934,0.9382,2997.4,2997.3,0.001]
[1763440484629,0.4634,2998.0,2997.3,0.001]
[1763440484930,0.291,2997.9,2997.3,0.001]
[1763440485127,0.291,2997.8,2997.3,0.001]
[1763440485310,2.41,2997.7,2997.3,0.406504]
[1763440485690,2.41,2997.7,2997.3,0.001]
[1763440486465,0.291,2997.6,2997.3,0.001]
[1763440489157,0.4634,2998.3,2997.3,0.001]
[1763440489329,0.29,2997.5,2997.3,0.001]
[1763440489655,0.29,2997.4,2997.3,0.001]
[1763440489853,0.1838,2998.7,2997.3,0.406504]
[1763440490057,0.194,2998.6,2997.4,0.43886624]
[1763440490355,0.4634,2999.4,2997.4,0.56936624]
[1763440490522,0.4634,2999.4,2997.6,0.405504]
[1763440490721,0.4634,2999.4,2997.5,0.16386113]
[1763440490722,0.29,2999.2,2997.8,0.405504]
[1763440490918,0.4634,2999.4,2998.0,0.405504]
[1763440491124,0.4634,2999.4,2997.9,0.03335668]
[1763440491125,0.29,2999.2,2998.2,0.405504]
[1763440491320,0.29,2999.1,2998.0,0.405504]
[1763440491824,0.29,2999.1,2998.0,0.1305]
[1763440492018,0.6472,2999.6,2998.1,0.1305]
[1763440492221,0.78674333,2999.5,2997.8,0.405504]
[1763440492553,0.7534,2999.5,2997.8,0.405504]
[1763440492758,0.4134,2999.4,2998.0,0.405504]
[1763440493279,0.29,2999.3,2998.2,0.405504]
[1763440493657,0.1838,2999.6,2998.2,0.405504]
[1763440493877,0.194,2999.5,2998.4,0.405504]
[1763440494051,0.194,2999.5,2998.6,0.405504]
[1763440494235,0.194,2999.5,2998.8,0.405504]
[1763440494439,0.194,2999.5,2999.0,0.405504]
[1763440494634,0.189,2999.4,2999.0,0.405504]
[1763440494843,0.189,2999.4,2999.0,0.586004]
[1763440495035,0.189,2999.4,2999.2,0.405504]
[1763440495257,2.41,2999.3,2999.2,0.405504]
[1763440495444,1.205,2999.3,2999.2,0.405504]
[1763440496167,0.189,2999.4,2999.2,0.405504]
[1763440496367,0.189,2999.4,2998.9,0.405504]
[1763440496559,0.189,2999.4,2999.0,0.03334444]
[1763440496754,0.29,2999.3,2999.1,0.405504]
[1763440496958,0.1838,3000.6,2999.3,0.405504]
[1763440497164,0.29,3000.5,2999.3,0.405504]
[1763440497336,0.29,3000.5,2999.5,0.405504]
[1763440497682,0.29,3000.5,2999.4,0.405504]
[1763440498445,0.1838,3000.6,2999.4,0.405504]
[1763440498446,0.29,3000.4,2999.4,0.405504]
[1763440500071,0.7534,3000.4,2999.4,0.23736811]
[1763440500254,0.7534,3000.4,2999.2,0.405504]
[1763440500575,0.49674333,3000.3,2998.9,1.96644481]
[1763440500787,0.4634,3000.3,2998.8,1.82102377]
[1763440500937,0.002,3000.5,2999.0,1.7876771]
[1763440501145,0.002,3000.5,2999.5,0.405504]
[1763440501349,0.002,3000.5,3000.4,0.536004]
[1763440501580,0.002,3000.9,3000.5,0.405504]
[1763440501885,0.203,3000.8,3000.7,3.70072115]
[1763440502091,0.1838,3002.4,3000.7,3.7340467]
[1763440502292,0.29,3000.8,3000.7,1.34582219]
[1763440502452,0.4634,3002.8,3000.7,3.7340467]
[1763440502653,0.4634,3002.8,3001.1,2.18956846]
[1763440502862,0.4634,3002.8,3001.1,0.43882511]
[1763440503166,0.4634,3002.8,3001.2,0.405504]
[1763440503367,0.4634,3002.8,3001.4,0.405504]
[1763440503765,0.201,3001.5,3001.4,0.405504]
[1763440503966,0.201,3001.5,3001.4,0.62421457]
[1763440504166,0.277,3001.5,3001.4,0.62421457]
[1763440504995,0.277,3001.5,3001.3,0.405504]
[1763440505159,0.277,3001.5,3000.4,1.91210169]
[1763440505160,0.1838,3001.4,3000.4,1.91210169]
[1763440505360,2.698,3001.3,3000.7,0.21382555]
[1763440505689,2.698,3001.3,3000.4,1.91210169]
[1763440505690,2.698,3001.3,3000.5,1.78160169]
[1763440505989,2.698,3001.3,3000.6,0.19121017]
[1763440506194,0.4959,3001.2,3000.3,1.78160169]
[1763440506369,0.002,3001.6,3000.4,0.03332888]
[1763440506571,0.002,3001.6,3000.5,2.18710569]
[1763440506890,0.002,3001.6,3000.4,0.62001647]
[1763440506891,0.002,3001.6,3001.5,0.536004]
[1763440507101,0.281,3001.6,3001.5,0.536004]
[1763440507461,0.281,3001.6,3001.5,0.74982067]
[1763440507659,0.002,3001.6,3001.5,0.74982067]
[1763440507899,0.242,3001.6,3001.5,0.74982067]
[1763440508108,0.242,3001.6,3001.5,1.0603455]
[1763440508261,0.242,3001.6,3001.5,0.8798455]
[1763440508463,0.002,3001.6,3001.5,0.405504]
[1763440508660,0.002,3001.6,3001.5,0.586004]
[1763440508965,0.002,3001.6,3001.5,0.61932067]
[1763440509168,0.4979,3003.0,3001.6,0.405504]
[1763440509169,0.002,3003.0,3001.6,0.405504]
[1763440509404,0.002,3003.0,3001.8,2.18710569]
[1763440509612,0.211,3002.9,3002.3,0.405504]
[1763440509907,0.211,3002.9,3001.9,1.43354615]
[1763440509908,0.211,3002.9,3002.5,0.405504]
[1763440510112,0.211,3002.9,3002.7,0.405504]
[1763440510316,0.002,3003.0,3002.9,0.405504]
[1763440510516,0.254,3003.0,3002.9,0.405504]
[1763440510674,0.254,3003.0,3002.9,0.1805]
[1763440511027,0.254,3003.0,3002.8,0.03330223]
[1763440511181,0.002,3003.0,3002.9,0.1805]
[1763440511379,0.002,3003.0,3002.9,0.586004]
[1763440511380,0.218,3003.0,3002.9,0.586004]
[1763440511582,0.218,3003.0,3002.9,0.405504]
[1763440511894,0.292,3003.0,3002.9,0.586004]
[1763440512915,1.81114974,3007.0,3002.9,0.586004]
[1763440512916,0.4959,3005.0,3003.0,0.405504]
[1763440513125,0.4959,3004.7,3003.2,0.405504]
[1763440513303,0.4959,3004.7,3003.1,0.08329892]
[1763440513304,0.4959,3004.7,3003.4,0.405504]
[1763440513678,0.4959,3004.7,3003.1,0.2305]
[1763440513679,0.4959,3005.2,3003.6,0.405504]
[1763440513883,0.4959,3006.0,3003.8,0.405504]
[1763440514123,0.1954,3007.4,3004.0,0.405504]
[1763440514124,0.7859,3005.8,3004.0,0.405504]
[1763440514318,0.7859,3005.8,3004.2,0.405504]
[1763440514524,0.7859,3005.8,3004.4,0.405504]
[1763440514525,0.4959,3005.7,3004.4,0.405504]
[1763440514677,0.4959,3005.7,3004.2,0.03328673]
[1763440514883,0.4959,3005.7,3003.9,0.405504]
[1763440514884,0.03334333,3005.6,3003.9,0.405504]
[1763440515088,0.29,3005.5,3003.8,0.405504]
[1763440515314,2.44134333,3005.4,3003.8,0.405504]
[1763440515512,0.29,3005.3,3003.3,0.0332967]
[1763440515720,0.7859,3005.3,3003.3,0.0332967]
[1763440515921,0.03334333,3005.2,3003.4,0.405504]
[1763440516095,0.4959,3005.2,3003.2,0.1805]
[1763440516296,0.1954,3005.1,3003.2,0.21379781]
[1763440516589,0.4959,3005.6,3003.3,0.81169159]
[1763440516928,0.29,3005.5,3003.4,0.03329559]
[1763440517128,0.29,3005.5,3003.4,0.21379559]
[1763440517422,0.4959,3005.4,3003.4,0.21379559]
[1763440518725,0.002,3005.1,3003.4,0.21379559]
[1763440519086,0.7494,3005.0,3003.1,0.05]
[1763440519290,0.7494,3005.0,3003.2,0.03329781]
[1763440519517,0.4594,3004.9,3003.2,0.03329781]
[1763440519725,0.29,3004.8,3003.3,0.1805]
[1763440519928,0.29,3004.8,3003.2,0.03329781]
[1763440520132,0.4594,3004.7,3003.2,0.03329781]
[1763440520928,0.4594,3004.7,3003.1,0.05]
[1763440521105,0.03334333,3004.6,3003.1,0.05]
[1763440521305,0.1822,3003.2,3002.2,0.40618759]
[1763440521555,0.1822,3003.2,3001.9,0.2094343]
[1763440521556,0.29,3003.1,3001.9,0.2094343]
[1763440521733,0.29,3003.1,3001.4,0.03331778]
[1763440521734,0.7494,3003.1,3001.4,0.03331778]
[1763440521935,0.7494,3003.1,3001.5,0.16710604]
[1763440522113,0.29,3003.1,3001.6,0.03331556]
[1763440522316,0.29,3003.1,3001.5,0.16710604]
[1763440522317,0.4594,3003.0,3001.5,0.16710604]
[1763440522642,0.4594,3003.0,3001.1,0.001]
[1763440523009,0.32334333,3002.9,3001.1,0.001]
[1763440523209,0.1822,3001.2,3001.1,0.001]
[1763440523405,0.4722,3001.2,3001.1,0.001]
[1763440523940,0.1822,3001.8,3001.1,0.001]
[1763440524106,0.249,3001.2,3001.1,0.001]
[1763440524516,0.7084,3001.2,3001.1,0.001]
[1763440524942,0.4594,3001.2,3001.1,0.001]
[1763440525141,0.29,3001.2,3001.1,0.001]
[1763440525451,3.1554,3001.2,3001.1,0.001]
[1763440525749,1.493,3001.2,3001.1,0.001]
[1763440525917,1.493,3001.2,3001.1,1.03566136]
[1763440526121,0.7494,3001.2,3001.1,0.001]
[1763440526445,0.7494,3001.2,3000.8,0.001]
[1763440526616,0.4594,3001.1,3000.8,0.001]
[1763440526968,0.4594,3001.1,3000.5,0.001]
[1763440527240,0.4594,3001.1,2998.9,4.02596711]
[1763440527241,0.1822,3000.6,2999.1,5.88506959]
[1763440527408,0.1822,3000.6,2999.2,0.03334222]
[1763440527605,0.1822,3001.8,2999.7,5.88506959]
[1763440527842,0.4594,3001.3,2999.9,0.405504]
[1763440528011,0.167,3001.2,3000.1,0.405504]
[1763440528215,0.167,3001.2,3000.2,0.03333111]
[1763440528416,0.7494,3001.1,2999.9,0.77897568]
[1763440528615,0.29,3001.0,3000.0,0.405504]
[1763440529032,0.4594,3000.9,3000.1,0.03333222]
[1763440529234,0.03334333,3000.8,3000.1,0.40618759]
[1763440529511,0.4594,3000.9,2998.4,5.88506959]
[1763440529512,0.1822,3000.2,2998.4,5.88506959]
[1763440529832,0.1822,3000.2,2998.5,0.58880696]
[1763440530007,0.7494,3000.1,2998.5,0.62215696]
[1763440530208,0.49274333,3000.0,2998.5,0.58880696]
[1763440530433,0.4594,3000.0,2998.5,0.58880696]
[1763440530632,0.03334333,2999.9,2998.5,0.58880696]
[1763440530830,0.03334333,2999.9,2998.6,0.64738765]
[1763440531019,0.7494,2999.8,2997.9,0.03635668]
[1763440531231,0.7494,2999.8,2997.9,0.94334932]
[1763440531412,0.4594,2999.7,2997.9,0.94034932]
[1763440531613,0.4594,2999.7,2998.0,0.68254189]
[1763440531822,0.1822,2999.6,2998.0,0.68254189]
[1763440532028,0.29,2999.5,2998.0,0.68254189]
[1763440532211,0.7494,2999.5,2998.0,0.68254189]
[1763440532543,0.1822,2999.6,2998.5,0.90699264]
[1763440532743,0.1822,2999.6,2998.6,0.405504]
[1763440532744,0.29,2999.4,2998.6,0.405504]
[1763440533042,0.7494,2999.4,2998.6,0.405504]
[1763440533341,0.7494,2999.4,2998.4,5.88506959]
[1763440533515,0.4594,2999.3,2998.6,0.405504]
[1763440533717,0.4594,2999.3,2998.5,0.58850696]
[1763440533916,0.4594,2999.3,2998.6,0.405504]
[1763440534117,0.29,2999.2,2998.8,0.405504]
[1763440534644,0.29,2999.1,2999.0,0.405504]
[1763440535240,2.698,2999.1,2998.6,0.405504]
[1763440535441,2.698,2999.1,2998.6,1.14386092]
[1763440535641,0.29,2999.1,2998.6,1.14386092]
[1763440536239,0.29,2999.1,2998.6,0.77170581]
[1763440536843,0.4594,2999.6,2998.7,0.405504]
[1763440537044,0.29,2999.5,2998.7,0.405504]
[1763440537438,0.29,2999.4,2998.7,0.405504]
[1763440537641,0.1822,2999.9,2999.1,0.405504]
[1763440537852,0.29,2999.8,2999.3,0.405504]
[1763440538065,0.7702,2999.8,2999.3,0.405504]
[1763440538245,0.1814,3000.5,2999.7,0.405504]
[1763440538449,0.1822,3000.8,2999.9,0.405504]
[1763440538769,0.29,3000.7,2999.9,0.405504]
[1763440539132,0.4802,3000.6,2999.9,0.405504]
[1763440539561,0.29,3000.5,2999.9,0.405504]
[1763440539761,0.4802,3000.6,2999.9,0.405504]
[1763440539963,0.29,3000.4,2999.9,0.405504]
[1763440540164,0.29,3000.4,2999.2,0.405504]
[1763440540350,0.4802,3000.3,2999.2,0.405504]
[1763440541450,0.4802,3000.3,2999.0,0.001]
[1763440541451,0.4802,3000.3,2999.0,1.31349664]
[1763440542781,0.4802,3000.3,2999.0,0.72085662]
[1763440542964,0.4802,3000.3,2999.0,0.001]
[1763440543277,0.29,3000.2,2999.2,0.405504]
[1763440543432,0.4802,3000.3,2999.4,0.405504]
[1763440543637,0.7702,3000.2,2999.4,0.405504]
[1763440543840,0.1814,2999.5,2999.2,0.405504]
[1763440544257,0.6616,2999.5,2999.2,0.405504]
[1763440544472,0.29,2999.4,2999.2,0.405504]
[1763440544678,0.7702,2999.4,2999.0,0.001]
[1763440544974,0.7702,2999.4,2998.7,0.001]
[1763440544975,0.03334333,2999.3,2998.7,0.001]
[1763440545186,0.4802,2999.3,2998.7,0.001]
[1763440546539,0.29,2999.2,2998.7,0.001]
[1763440546936,0.4802,2999.1,2998.7,0.001]
[1763440548958,0.29,2999.0,2998.7,0.001]
[1763440549691,0.7702,2999.0,2998.7,0.001]
[1763440550052,0.7702,2998.9,2998.7,0.001]
[1763440550255,0.1814,2999.5,2998.7,0.001]
[1763440550603,0.181,2999.4,2999.1,0.405504]
[1763440550907,0.181,2999.3,2999.1,0.405504]
[1763440551201,0.1814,2999.7,2999.1,0.405504]
[1763440551353,0.4802,3000.0,2999.1,0.405504]
[1763440551557,0.1822,3000.8,2999.3,2.17223975]
[1763440551558,0.29,2999.9,2999.3,2.17223975]
[1763440551788,0.29,2999.9,2999.5,0.405504]
[1763440551955,0.9516,2999.9,2999.5,0.405504]
[1763440552581,0.9516,2999.9,2999.5,2.17223975]
[1763440553086,0.1822,3000.8,2999.5,2.17223975]
[1763440553087,0.4802,3000.5,2999.5,2.17223975]
[1763440553291,0.29,3000.4,2999.7,2.17223975]
[1763440553478,0.29,3000.4,2999.8,0.405504]
[1763440553650,0.7702,3000.4,2999.8,0.405504]
[1763440554287,0.29,3000.3,2999.8,2.17223975]
[1763440554483,0.29,3000.3,2999.9,0.21722398]
[1763440554693,0.7702,3000.3,3000.0,0.405504]
[1763440555175,0.4802,3000.2,2999.9,2.17223975]
[1763440555375,1.205,3000.1,2999.9,2.17223975]
[1763440555590,0.1822,3000.8,2999.9,2.38946373]
[1763440555793,0.29,3000.7,3000.1,2.17223975]
[1763440556089,0.002,3000.4,3000.1,2.17223975]
[1763440556387,0.002,3000.4,3000.2,1.76673575]
[1763440556689,0.002,3000.4,3000.1,0.405504]
[1763440556690,0.4822,3000.4,3000.1,0.405504]
[1763440556890,0.4822,3000.4,3000.1,2.17223975]
[1763440557592,0.29,3000.3,3000.1,2.17223975]
[1763440558090,0.7702,3000.3,3000.1,2.17223975]
[1763440558395,0.7702,3000.3,3000.1,0.405504]
[1763440558559,0.4802,3000.2,3000.1,0.405504]
[1763440559481,0.002,3000.4,3000.1,0.62272798]
[1763440559788,0.29,3000.3,3000.2,1.7977065]
[1763440560360,0.29,3000.3,3000.2,0.03333111]
[1763440560560,0.29,3000.3,3000.1,0.405504]
[1763440560984,0.002,3000.4,3000.2,3.904]
[1763440561185,0.002,3000.8,3000.3,1.92645]
[1763440561415,0.6616,3002.4,3001.6,5.88506959]
[1763440561583,0.4802,3003.4,3002.3,7.67984497]
[1763440561782,0.4802,3003.0,3002.5,1.79440392]
[1763440562016,0.4802,3003.0,3002.0,1.79440392]
[1763440562219,0.4802,3003.0,3002.1,1.79440392]
[1763440562405,0.4802,3003.0,3001.8,1.79440392]
[1763440562606,0.29,3002.9,3001.9,1.79440392]
[1763440562923,0.29,3002.9,3002.5,0.405504]
[1763440563122,0.51354333,3002.8,3001.9,0.405504]
[1763440563417,0.4802,3002.8,3001.7,0.405504]
[1763440563622,0.1814,3001.9,3001.4,2.19990792]
[1763440563821,0.29,3001.8,3001.4,2.19990792]
[1763440564120,0.29,3001.8,3001.4,0.405504]
[1763440564279,0.4802,3001.7,3001.0,1.79440392]
[1763440564479,0.4802,3001.7,3000.6,1.79440392]
[1763440564704,0.4802,3001.7,3000.2,2.39303384]
[1763440564705,0.4802,3001.7,3000.5,1.79440392]
[1763440564879,0.4802,3001.7,3000.5,1.97384431]
[1763440565094,0.1814,3000.6,3000.4,1.79440392]
[1763440565306,0.1814,3000.6,3000.1,1.79440392]
[1763440565307,2.698,3000.5,3000.1,1.79440392]
[1763440565616,2.698,3000.5,3000.3,0.405504]
[1763440565912,1.494,3000.5,3000.0,1.79440392]
[1763440566117,1.494,3000.5,3000.1,0.405504]
[1763440566287,1.494,3000.5,3000.1,0.62549479]
[1763440566484,0.6859,3000.9,3000.1,0.62549479]
[1763440566688,0.1814,3001.9,3000.1,0.62549479]
[1763440566689,0.1814,3001.9,3000.9,0.405504]
[1763440566886,0.7859,3001.8,3001.1,0.405504]
[1763440567081,0.7859,3001.8,3001.0,0.80846799]
[1763440567082,0.7859,3001.8,3001.0,0.84179021]
[1763440567300,0.4959,3001.8,3001.1,0.405504]
[1763440567513,0.29,3001.7,3001.1,2.50407773]
[1763440567731,0.29,3001.7,3001.2,0.405504]
[1763440567887,0.1814,3001.9,3001.2,0.405504]
[1763440568085,0.29,3001.8,3001.2,0.405504]
[1763440568430,0.29,3001.8,3001.2,0.70634159]
[1763440568845,0.7859,3001.8,3000.9,1.79440392]
[1763440569061,0.7859,3001.8,3000.5,2.39303384]
[1763440569062,0.7859,3001.8,3000.6,0.03332666]
[1763440569363,0.7859,3001.7,3000.5,0.405504]
[1763440569572,0.4959,3003.7,3001.7,0.90699264]
[1763440569852,0.29,3003.6,3003.0,0.405504]
[1763440570068,0.29,3003.6,3002.9,1.79440392]
[1763440570069,0.4959,3003.5,3003.2,0.405504]
[1763440570442,0.4959,3003.5,3002.8,0.405504]
[1763440570647,0.4959,3003.5,3002.5,7.67917588]
[1763440570648,0.4959,3003.5,3002.6,0.405504]
[1763440570829,0.4959,3003.5,3002.6,2.96782551]
[1763440571032,0.29,3003.4,3002.8,2.19990792]
[1763440571217,0.19,3004.3,3003.2,1.31249664]
[1763440571417,0.29,3004.2,3003.4,0.405504]
[1763440571616,0.002,3004.8,3003.3,0.0332967]
[1763440571617,0.29,3004.1,3003.6,0.405504]
[1763440571863,0.29,3004.1,3003.4,0.405504]
[1763440572027,0.29,3004.1,3003.4,2.47004758]
[1763440572211,0.29,3004.1,3003.4,0.405504]
[1763440572419,0.19,3004.0,3003.3,0.405504]
[1763440572632,0.29,3004.1,3003.4,0.21999079]
[1763440572855,0.29,3004.1,3003.2,0.405504]
[1763440573559,0.9759,3004.0,3003.0,1.79440392]
[1763440573713,0.9759,3004.0,3002.8,1.79440392]
[1763440573918,0.4959,3003.9,3002.3,1.79440392]
[1763440574164,0.48,3004.0,3002.3,1.79440392]
[1763440574165,0.29,3003.8,3002.7,5.88477196]
[1763440574475,0.4959,3004.2,3002.9,0.405504]
[1763440574620,0.002,3004.1,3003.4,1.31249664]
[1763440574951,0.002,3004.8,3004.0,1.31249664]
[1763440575176,0.19,3006.3,3004.7,8.99167252]
[1763440575320,0.4959,3006.8,3005.4,0.405504]
[1763440575321,2.698,3006.2,3005.4,0.405504]
[1763440575520,2.888,3006.2,3005.5,0.405504]
[1763440575831,0.19,3006.7,3005.5,1.31249664]
[1763440576136,0.29,3006.1,3005.7,0.405504]
[1763440576383,0.29,3006.1,3005.6,0.405504]
[1763440576591,0.7859,3006.1,3005.6,0.405504]
[1763440576892,0.03334333,3006.0,3003.7,1.77431541]
[1763440577187,0.52924333,3006.0,3003.3,0.004]
[1763440577342,0.291,3005.9,3003.4,0.03729559]
[1763440577681,0.4959,3006.0,3003.1,1.77431541]
[1763440577682,0.32434333,3005.8,3003.1,1.77431541]
[1763440577980,0.32434333,3005.8,3003.0,5.88477196]
[1763440578184,0.4959,3005.7,3003.0,5.88477196]
[1763440578482,0.03334333,3005.6,3003.0,5.88477196]
[1763440578781,0.03334333,3005.6,3002.4,6.09751903]
[1763440578983,0.859204,3005.5,3002.4,5.88477196]
[1763440579144,0.48704333,3005.4,3002.4,5.91807864]
[1763440579349,0.48704333,3005.4,3001.4,1.6377426]
[1763440579350,0.1886,3002.5,3001.4,1.6377426]
[1763440579656,0.134,3002.4,3001.5,0.004]
[1763440579859,0.134,3002.4,3001.1,1.77431541]
[1763440579860,0.134,3002.4,3001.1,5.88477196]
[1763440580085,0.134,3002.4,3001.2,0.6221972]
[1763440580366,0.5877,3002.4,3001.2,0.5888772]
[1763440580557,0.291,3002.3,3001.1,5.88477196]
[1763440580770,0.4537,3002.4,3001.2,0.5888772]
[1763440580968,0.1886,3002.6,3001.3,0.03331889]
[1763440581148,0.134,3002.5,3001.8,0.90699264]
[1763440581347,0.1886,3003.0,3002.0,0.405504]
[1763440581659,0.291,3002.4,3001.9,0.67917646]
[1763440581864,0.291,3002.4,3001.2,0.405504]
[1763440582060,0.291,3002.4,3001.2,0.409504]
[1763440582461,0.4537,3002.9,3001.2,0.409504]
[1763440582667,0.291,3002.8,3001.7,1.31249664]
[1763440582972,0.291,3002.8,3001.9,0.405504]
[1763440583299,0.291,3002.8,3001.7,0.90699264]
[1763440583300,0.7447,3002.8,3002.1,0.405504]
[1763440583495,0.291,3002.7,3002.1,0.405504]
[1763440583696,0.291,3002.7,3001.7,0.405504]
[1763440583911,0.291,3002.7,3001.9,0.405504]
[1763440585076,0.4537,3002.6,3001.4,0.405504]
[1763440585588,0.1886,3003.8,3002.6,0.90699264]
[1763440585821,1.494,3003.7,3002.7,1.66447817]
[1763440585986,0.291,3003.7,3002.7,1.20208608]
[1763440586387,0.1886,3004.4,3002.7,1.20208608]
[1763440586587,0.291,3004.3,3003.2,1.31249664]
[1763440586793,0.7447,3004.3,3003.2,1.31249664]
[1763440587109,0.7447,3004.3,3002.9,1.31249664]
[1763440587314,0.4537,3004.2,3002.9,1.31249664]
[1763440587474,0.4537,3004.2,3002.9,0.405504]
[1763440588102,0.4537,3004.2,3002.8,0.405504]
[1763440588914,0.4537,3004.2,3002.8,0.21090787]
[1763440589115,0.03334333,3004.1,3002.8,0.21090787]
[1763440589426,0.4537,3004.2,3002.3,1.77431541]
[1763440589715,0.291,3004.1,3003.2,1.31249664]
[1763440589916,0.291,3004.1,3003.4,0.405504]
[1763440590074,0.1886,3004.4,3003.4,0.405504]
[1763440590278,0.1886,3004.7,3003.8,0.405504]
[1763440590481,0.291,3004.6,3003.8,1.31249664]
[1763440590801,0.291,3004.5,3004.0,0.405504]
[1763440591009,0.291,3004.5,3004.4,0.405504]
[1763440591203,0.291,3004.5,3004.4,1.31249664]
[1763440591450,0.291,3004.5,3004.4,2.32706066]
[1763440591653,0.291,3004.5,3004.4,1.42006802]
[1763440591812,0.4537,3006.0,3004.4,0.004]
[1763440592147,0.4796,3005.9,3004.9,1.31249664]
[1763440592347,0.002,3005.1,3004.9,1.31249664]
[1763440592570,0.002,3005.1,3005.0,1.24263648]
[1763440593119,0.002,3005.1,3005.0,0.405504]
[1763440593665,0.1906,3005.1,3005.0,0.405504]
[1763440593815,0.6443,3005.1,3005.0,0.405504]
[1763440594159,0.002,3005.1,3005.0,0.405504]
[1763440594524,0.293,3005.1,3005.0,0.405504]
[1763440594918,0.002,3005.1,3005.0,0.405504]
[1763440595227,2.699,3005.1,3005.0,0.405504]
[1763440595629,2.8876,3005.1,3005.0,0.405504]
[1763440595858,2.699,3005.1,3005.0,0.405504]
[1763440596218,0.9289,3005.1,3005.0,0.405504]
[1763440596540,0.4731,3005.1,3005.0,0.405504]
[1763440596747,0.9289,3005.1,3005.0,0.405504]
[1763440597553,0.9289,3005.1,3003.9,1.77431541]
[1763440597852,0.4558,3005.0,3004.0,0.17743154]
[1763440598019,0.4558,3005.0,3003.7,0.405504]
[1763440598421,0.4558,3005.0,3003.9,0.405504]
[1763440598624,0.4558,3005.0,3003.7,1.77431541]
[1763440598860,0.03334333,3004.9,3003.3,1.77431541]
[1763440599062,0.4731,3005.1,3003.1,1.77431541]
[1763440599063,0.4558,3004.8,3003.1,1.77431541]